Cogmind - Beta 15 @@@ ROGUE MODE // 2025.05.29 @ 01:24:10 Player: celerysam Result: Destroyed by G-47 Trooper with Particle Gun Performance ------------- Evolutions (0) 0 Regions Visited (1) 200 Robots Destroyed (11) 55 Value Destroyed (128) 128 Prototype IDs (0) 0 Alien Tech Used (0) 0 Bonus (0) 0 TOTAL SCORE: 383 Bonus ------- None Cogmind --------- Core Integrity 0/250 Matter 4/300 Energy 58/250 System Corruption 0% Temperature Cool (9) Movement Treading (480) Ox4 Location -10/Materials Parts ------- > --- POWER (1) -------- Ion Engine > --- PROPULSION (2) --- Light Treads Wheel > --- UTILITY (2) ------ Huge Storage Unit > --- WEAPON (2) ------- Small Laser > --- INVENTORY (25) --- Ion Engine Light Ion Engine Light Ion Engine Light Treads Compact Wheel Compact Wheel Compact Wheel Mining Laser Peak State ------------ > --- POWER ------------ Ion Engine > --- PROPULSION ------- Compact Wheel Compact Wheel > --- UTILITY ---------- Huge Storage Unit Structural Scanner > --- WEAPON ----------- Assault Rifle Light Assault Rifle > --- INVENTORY -------- Ion Engine Light Ion Engine Light Ion Engine Light Treads Light Treads Wheel Compact Wheel Flight Unit Small Laser Mining Laser [Rating: 8] Favorites ----------- Power Ion Engine Engine Ion Engine Propulsion Aluminum Leg Treads Light Treads Leg Aluminum Leg Wheel Compact Wheel Utility Small Storage Unit Device Structural Scanner Storage Small Storage Unit Weapon Assault Rifle Energy Gun Small Laser Ballistic Gun Assault Rifle Build | -11 -10 ------- Run | Yrd Mat Slots Evolved . | . . Power . | . . Propulsion . | . . Utility . | . . Weapon . | . . Parts Attached 17 | 6 11 Power 3 | 1 2 Engine 3 | 1 2 Core . | . . Reactor . | . . Propulsion 6 | 2 4 Treads 1 | . 1 Leg 2 | 2 . Wheel 3 | . 3 Hover . | . . Flight . | . . Utility 4 | 1 3 Device 2 | . 2 Storage 2 | 1 1 Processor . | . . Hackware . | . . Protection . | . . Artifact . | . . Weapon 4 | 2 2 Energy Gun 1 | . 1 Energy Cannon . | . . Ballistic Gun 3 | 2 1 Ballistic Cannon . | . . Launcher . | . . Special Weapon . | . . Impact Weapon . | . . Slashing Weapon . | . . Piercing Weapon . | . . Special Melee Weapon . | . . Unidentified Prototypes . | . . Parts Lost 1 | . 1 Power . | . . Propulsion . | . . Utility . | . . Weapon 1 | . 1 Highest Loss Streak 1 | . 1 To Critical Strikes . | . . Average Backups 6 | 4 7 Power 1 | . 2 Propulsion 3 | 3 3 Utility . | . . Weapon 1 | . 1 Tool/Special . | . . Unused Backups 4 | . 4 Power 1 | . 1 Propulsion 2 | . 2 Utility . | . . Weapon 1 | . 1 Tool/Special . | . . Average Slot Usage (%) 88 | . 88 Engine 13 | . 13 Leg 17 | . 17 Wheel 8 | . 8 Device 7 | . 7 Storage 14 | . 14 Ballistic Gun 26 | . 26 Peak Build Rating 8 | 6 8 Average Rating 5 | 3 6 On Entrance 3 | . 6 Naked Turns . | . . Heaviest Build 89 | 12 89 Greatest Support 32 | 20 32 Greatest Overweight (x) 26 | . 26 Average Overweight (x) . | . . Largest Inventory Capacity 25 | 8 25 Average Capacity 10 | 6 11 Most Carried 12 | 6 12 Average Carried 7 | 4 7 Final Capacity 25 | 8 25 Final Carried 8 | 6 8 Class Distribution -------------------- 100% | Mutant Dominant Class ---------------- Mutant | -10/Materials Resources | -11 -10 ----------- Run | Yrd Mat Matter Collected 280 | 228 52 Remotely . | . . Salvage Created 327 | . 327 Parts 19 | . 19 Haulers Intercepted 2 | . 2 Recyclers Shooed . | . . Parts Field Recycled . | . . Retrieved Matter . | . . Parts Self-Destructed . | . . Prevented . | . . Kills | -11 -10 ------- Run | Yrd Mat Combat Hostiles Destroyed 7 | . 7 Guns 7 | . 7 Classes Destroyed 5 | . 5 Worker 1 | . 1 Builder 1 | . 1 Hauler 2 | . 2 Swarmer 5 | . 5 Grunt 2 | . 2 Best Kill Streak 6 | . 6 Combat Bots Only 4 | . 4 Max Kills in Single Turn 2 | . 2 Gunslinging 1 | . 1 Exploded . | . . Melee . | . . Uniques/NPCs Destroyed . | . . Combat | -11 -10 -------- Run | Yrd Mat Hostile Shots Fired 92 | . 92 Missed 22 | . 22 Hits 70 | . 70 Projectile 70 | . 70 Critical Strikes 1 | . 1 Damage Taken 727 | . 727 Core 262 | . 262 Absorbed by Shields . | . . Core Remaining (%) 100 | 100 . Volleys Fired 40 | . 40 Largest 2 | . 2 Hottest 40 | . 40 Shots Fired 79 | . 79 Gun 79 | . 79 Cannon . | . . Launcher . | . . Special . | . . Kinetic 79 | . 79 Thermal . | . . Explosive . | . . Electromagnetic . | . . Robot Hit Streak 7 | . 7 Robot Miss Streak 6 | . 6 Penetration Max . | . . Secondary Targets 5 | . 5 Max Gunslinging Chain 1 | . 1 Shots Hit Robots 37 | . 37 Core Hits 16 | . 16 Critical Kills . | . . Critical Parts Destroyed 2 | . 2 Critical Strikes 2 | . 2 Destroy 2 | . 2 Melee Attacks . | . . Impact . | . . Slashing . | . . Piercing . | . . Sneak Attacks . | . . Combat Hostiles . | . . Follow-up Attacks . | . . Damage Inflicted 479 | . 479 Guns 479 | . 479 Cannons . | . . Explosions . | . . Melee . | . . Ramming . | . . Kinetic 479 | . 479 Thermal . | . . Explosive . | . . Electromagnetic . | . . Impact . | . . Slashing . | . . Piercing . | . . Highest Corruption . | . . Average Corruption . | . . Corruption Purged . | . . Corruption Blocked . | . . Overload Shots . | . . Overflow Damage . | . . Projectiles . | . . Explosions . | . . Melee . | . . Knockbacks . | . . Impact . | . . Kinetic . | . . Secondary . | . . Self-Inflicted Damage . | . . Shots . | . . Rammed . | . . Targets Rammed . | . . Kicked . | . . Crushed . | . . Highest Temperature . | . . Average Temperature . | . . Received Heat Transfer 198 | . 198 Siege Activations . | . . Martial Activations . | . . Shielding Activations . | . . Robots Disrupted . | . . Combat Hostiles . | . . Robots Corrupted . | . . Combat Hostiles . | . . Parts Fried . | . . Impact Corruptions . | . . Robots Melted . | . . Combat Hostiles . | . . Parts Melted . | . . Heat Transferred . | . . Parts Sabotaged . | . . Parts Stolen . | . . Parts Stripped . | . . Power Chain Reactions . | . . Alert | -11 -10 ------- Run | Yrd Mat Maximum Alert Level . | . . Low Security (%) 100 | 100 100 Level 1 . | . . Level 2 . | . . Level 3 . | . . Level 4 . | . . Level 5 . | . . High Security . | . . Max Security . | . . Peak Influence 92 | . 92 Initial . | . . Average 39 | . 47 Influence Increases 199 | . 199 Destroy 0b10 Robot/C 140 | . 140 Destroy 0b10 Robot/NC 20 | . 20 Destroy Leader 24 | . 24 Lose Combat Pursuer 15 | . 15 Influence Decreases 160 | . 160 Time Decay 150 | . 150 Lost Part 10 | . 10 Squads Dispatched 1 | . 1 Investigation . | . . Extermination . | . . Reinforcement 1 | . 1 Assault . | . . Garrison . | . . Intercept . | . . Searches Triggered . | . . Construction Impeded . | . . Haulers Reinforced . | . . Active Scanning Responses . | . . Cargo Convoy Interrupts . | . . Stealth | -11 -10 --------- Run | Yrd Mat Distress Signals 6 | . 6 Communications Jammed . | . . Distress Signals . | . . Times Spotted 14 | . 14 Peak Tracking Total 4 | . 4 Tactical Retreats 1 | . 1 Traps | -11 -10 ------- Run | Yrd Mat Traps Triggered 3 | . 3 Indirectly . | . . Trap Hack Attempts . | . . Triggered . | . . Disarmed . | . . Reprogrammed . | . . Reused . | . . Traps Extracted . | . . Installed . | . . Triggered . | . . Machines | -11 -10 ---------- Run | Yrd Mat Machines Disabled . | . . Max in Single Turn . | . . Machines Repaired . | . . Machines Dismantled . | . . Machines Sabotaged . | . . Overloaded Fab Kills . | . . Hacking | -11 -10 --------- Run | Yrd Mat Machines Accessed . | . . Terminals . | . . Fabricators . | . . Repair Stations . | . . Recycling Units . | . . Scanalyzers . | . . Garrison Access . | . . Total Hacks . | . . Successful . | . . Failed . | . . Catastrophic . | . . Database Lockouts . | . . Manual . | . . Terminals . | . . Fabricators . | . . Repair Stations . | . . Recycling Units . | . . Scanalyzers . | . . Garrison Access . | . . Terminal Hacks . | . . Fabricator Hacks . | . . Repair Station Hacks . | . . Recycling Unit Hacks . | . . Scanalyzer . | . . Garrison Access Hacks . | . . Unauthorized Hacks . | . . Terminals . | . . Fabricators . | . . Repair Stations . | . . Recycling Units . | . . Scanalyzers . | . . Garrison Access . | . . Data Cores Recovered . | . . Used . | . . Hacking Detections . | . . Full Trace Events . | . . Feedback Events . | . . Feedback Blocked . | . . Robot Schematics Acquired . | . . Robots Built . | . . Authchips . | . . Time . | . . Total Robot Build Rating . | . . Part Schematics Acquired . | . . Parts Built . | . . Authchips . | . . Time . | . . Total Part Build Rating . | . . Parts Repaired . | . . Time . | . . Parts Recycled . | . . Recycled Matter . | . . Retrieved Matter . | . . Retrieved Components . | . . Parts Scanalyzed . | . . Part Schematics Acquired . | . . Parts Damaged . | . . Bothacking | -11 -10 ------------ Run | Yrd Mat Used RIF Installer . | . . Robots Hacked . | . . Non-combat . | . . Combat . | . . Robot Hacks Applied . | . . Relay Couplers Released . | . . Fabnet Peak Effective % . | . . Robots Rewired . | . . Allies Hacked . | . . Hacks Repelled . | . . Allies | -11 -10 -------- Run | Yrd Mat Total Allies . | . . Largest Group . | . . Highest-Rated Group . | . . Highest-Rated Ally . | . . Total Orders . | . . Ally Attacks . | . . Total Damage . | . . Kills . | . . Allies Corrupted . | . . Allies Melted . | . . Intel | -11 -10 ------- Run | Yrd Mat Active Infowar (turns) 179 | . 179 Terrain 57 | . 57 Structural 122 | . 122 Robot Analysis Total . | . . Derelict Logs Recovered . | . . Drone Launches . | . . Drone Recoveries . | . . Exploration | -11 -10 ------------- Run | Yrd Mat Turns Passed 411 | 71 340 Spaces Moved 213 | 57 156 Core 17 | 16 1 Treads 1 | . 1 Legs 135 | 41 94 Wheels 60 | . 60 Hover . | . . Flight . | . . Fastest Speed 50 | 50 100 Average Speed 119 | 100 126 Slowest Speed 1350 | 120 1350 Overloaded Moves . | . . Propulsion Burnouts . | . . Robots Hopped . | . . Potential Cave-ins . | . . Cave-ins Triggered . | . . Exploration Rate (%) 17 | 4 31 Regions Visited 1 Branch Regions . Pre-discovered Areas . | . . Known Exits Taken . | . . Unknown Exits Taken 1 | 1 . Scrap Searched . | . . Spaces Dug . | . . Terrain Destroyed . | . . Melee . | . . Projectile . | . . AOE . | . . Terrain Rammed . | . . Walls Destroyed . | . . Machines Disabled . | . . Actions | -11 -10 --------- Run | Yrd Mat Total 295 | 68 227 Wait 3 | . 3 Move 212 | 56 156 Hop . | . . Pick Up 17 | 6 11 Fast Attach 7 | 6 1 Attach 6 | . 6 Detach . | . . Swap 5 | . 5 Drop 5 | . 5 Fire 40 | . 40 Melee . | . . Ram . | . . Kick . | . . Crush . | . . Escape Stasis . | . . Rewire . | . . Trap . | . . Miscellaneous . | . . Route ------- -11/Scrapyard -10/Materials (discovered 2 exits: [*Mat] / [*Sub]) History --------- Turn | Location | Event 7 | -11/Scrapyard | Discovered new exit (range 15) 72 | -11/Scrapyard | Entered Materials 231 | -10/Materials | Discovered new exit (range 4) 311 | -10/Materials | Build established: Mutant 327 | -10/Materials | Discovered new exit (range 10) 396 | -10/Materials | Core integrity fell below 50% 401 | -10/Materials | Core integrity fell below 20% 412 | -10/Materials | Destroyed by G-47 Trooper with Particle Gun Last Messages --------------- 00384_ Dropped Flight Unit. 00385_ W-16 Scout sends out distress signal. 00386_ Triggered Blade Trap. 00386_ Massive razor-sharp blades shoot up from within the floor. 00386_ Com. Wheel severed. 00386_ Lgt. Assault Rifle severed. 00386_ Ion Engine severed. 00387_ Acquired Com. Wheel. 00390_ Acquired Ion Engine. 00391_ Triggered Blade Trap. 00391_ Massive razor-sharp blades shoot up from within the floor. 00391_ Assault Rifle severed. 00391_ Com. Wheel severed. 00391_ Structural Scanner severed. 00392_ R-06 Scavenger collects Huge Storage Unit. 00397_ U-05 Engineer lays Concrete. 00406_ Acquired Com. Wheel. Map ----- +----------------------------------------------------+ | ?????????????????????????????????????????????????? | | ?????????????????????????????????????????????????? | | ?????????????????????????????????????????????????? | | ?????????????????????????????????????????????????? | | ?????????????????????????????????????????????????? | | ?????????????????????????????????????????????????? | | ?????????????????????????????????????????????????? | | ?????????????????????????????????????????????????? | | ?????????????????????????????????????????????????? | | ?????????????????????????????????????????????????? | | ?????????????????????## ?????????????????????? | | ?????????????????????## "????????????????????? | | ?????????????????????## ^ "????????????????????? | | ?????????????????????##]! ""???????????????????? | | ?????????????????????##!! ???????????????????? | | ?????????????????????## gg ???????????????????? | | ?????????????????????## """ ? ??????????????? | | ?????????????????????##!!! """ ???????????? | | ?????????????????????##!!! """? ######+### | | ??????????????????#####!! ? | | ??????????????????##### ?? | | ?????????????????? ?? | | ????????????????????? ##??????# #########+# | | ?????????????????????? ##????????????????# | | ??????????????????????##^% ##????????????????# """ | | ??????????????????????##[@^##????????????????# """ | | ??????????????????????## ! ##????????????????# """ | | ??????????????????????##%= ##????????????????# | | ??????????????????????##= ##??????#? ???????# | | ??????????????????????## ##??????# ???????###+# | | ??????????????????????## ##????? ######## # | | ??????????????????????## ##???? | | ??????????????????????## ##???? ! | | ??????????????????????## ##???? | | ??????????????#???#???## ##??? ? ###### | | ???????????? ?????????## * ##?????###??#?????# ^ | | ??????????????????#???##! !###???????????????# | | ??????????????????????## !##??????########### ^ | | ?????????????????#######! %######### [%%[ | | ?????????????????####### ! ######### * | | ?????????????????## | | ?????????????????## | | ?????????????????## ###+########### ####### | | ????######"""###### # ##### # ????##### | | ????############### # ##????# < #?????????? | | ????## =* ## ##?#??# #?????????? | | ###### = #######<##????#####?????????? | | ########+####+####+############??????????????????? | | # # ##?####??????????????????# | | # T # ##??#????????????????#???? | +----------------------------------------------------+ Best States ------------- Heat Dissipation 25 Energy Generation 10 Energy Capacity 250 Matter Stores 268 Matter Capacity 300 Sight Range 16 Terrain Scan Range 14 Terrain Scan Density 10 Evasion (%) 55 Recoil Reduction 1 Item Schematics ----------------- None Robot Schematics ------------------ None Fabricated ------------ Nothing Repaired ---------- Nothing Alien Tech Used ----------------- None Achievements -------------- None Challenges ------------ None Game ------ Seed CloakingBattleAutohacker Manual? 0 Play Time 00:04:04 Cumulative 267.0 hours Start 2025.05.29 @ 01:20:11 End 2025.05.29 @ 01:24:10 Sessions 1 Manual Loads 0 Difficulty Rogue Special Mode None Game No. 407 Rogue 407 Adventurer 0 Explorer 0 Win Type - Total 1 Types 1/0/0/0/0/0/0/0/0/0 Lore% 64 Gallery% 63 Achievement% 43 Wizard Run 0 Options --------- Layout 1 ASCII 0 Keyboard 0 Movement Mouse Keybinds 0 Fullscreen 2 Font 24/Smallcaps Map View 50x35 Zoom Use 0% Tactical HUD 1 Map Filters NONE Filters NONE Steam 1 RUN: 6833dfd6-75b4-4f48-8c73-ab5408e97de6